Cogmind - Beta 13 @@@ ROGUE MODE // 2024.03.22 @ 05:18:26 Player: arkn Result: Self-destructed Performance ------------- Evolutions (2) 1000 Regions Visited (5) 1000 Robots Destroyed (30) 150 Value Destroyed (659) 659 Prototype IDs (25) 500 Alien Tech Used (0) 0 Bonus (300) 300 TOTAL SCORE: 3609 Bonus ------- Aligned with FarCom 300 Cogmind --------- Core Integrity 476/550 Matter 193/300 Energy 43/140 System Corruption 0% Temperature Critical (732) Movement Walking (330) Ox3 Location -8/Materials Parts ------- > --- POWER (1) -------- Light Deuterium Engine > --- PROPULSION (3) --- Aluminum Leg > --- UTILITY (5) ------ Medium Storage Unit Improved Sensor Array Seismic Detector Hardened Medium Armor Plating High-powered Tractor Beam > --- WEAPON (2) ------- Field Laser Heavy Particle Cannon > --- INVENTORY (10) --- Compact Wheel Lightpack 2.0 Large Matter Pod (0) Machine Analyzer Improved Signal Interpreter Light Cannon Grenade Launcher Mining Laser Peak State ------------ > --- POWER ------------ Light Deuterium Engine > --- PROPULSION ------- Aluminum Leg Aluminum Leg Wheel > --- UTILITY ---------- Medium Storage Unit Improved Sensor Array Seismic Detector Hardened Medium Armor Plating High-powered Tractor Beam > --- WEAPON ----------- Field Laser Heavy Particle Cannon > --- INVENTORY -------- Compact Wheel Lightpack 2.0 Large Matter Pod Machine Analyzer Improved Signal Interpreter Light Cannon Grenade Launcher Mining Laser [Rating: 26] Favorites ----------- Power Light Ion Engine Engine Light Ion Engine Propulsion Aluminum Leg Leg Aluminum Leg Wheel Wheel Utility Seismic Detector Device Seismic Detector Storage Medium Storage Unit Processor Signal Interpreter Protection Hardened Medium Armor Plating Weapon Light Cannon Energy Gun Field Laser Energy Cannon Heavy Particle Cannon Ballistic Gun Assault Rifle Ballistic Cannon Light Cannon Special Weapon Mining Laser Build | -11 -10 -10 -10 -9 -8 ------- Run | Yrd Mat Min Exi Min Mat Slots Evolved 4 | . . . . . 4 Power . | . . . . . . Propulsion 1 | . . . . . 1 Utility 3 | . . . . . 3 Weapon . | . . . . . . Parts Attached 33 | 1 15 5 1 . 11 Power 4 | . 1 1 . . 2 Engine 4 | . 1 1 . . 2 Core . | . . . . . . Reactor . | . . . . . . Propulsion 7 | . 4 1 . . 2 Treads . | . . . . . . Leg 6 | . 4 1 . . 1 Wheel 1 | . . . . . 1 Hover . | . . . . . . Flight . | . . . . . . Utility 8 | 1 1 1 1 . 4 Device 4 | 1 . 1 . . 2 Storage 1 | . . . 1 . . Processor 1 | . 1 . . . . Hackware . | . . . . . . Protection 2 | . . . . . 2 Artifact . | . . . . . . Weapon 14 | . 9 2 . . 3 Energy Gun 2 | . 1 . . . 1 Energy Cannon 1 | . . . . . 1 Ballistic Gun 2 | . 2 . . . . Ballistic Cannon 8 | . 6 1 . . 1 Launcher . | . . . . . . Special Weapon 1 | . . 1 . . . Impact Weapon . | . . . . . . Slashing Weapon . | . . . . . . Piercing Weapon . | . . . . . . Special Melee Weapon . | . . . . . . Unidentified Prototypes . | . . . . . . Corrupted Parts 1 | 1 . . . . . System Corruption 1 | 1 . . . . . Parts Lost 7 | . 1 3 . . 3 Power 1 | . . 1 . . . Propulsion 3 | . . . . . 3 Utility 1 | . . 1 . . . Weapon 2 | . 1 1 . . . Highest Loss Streak 2 | . 1 1 . . 2 To Critical Strikes . | . . . . . . Average Slot Usage (%) 96 | . 98 98 100 100 92 Engine 11 | . 14 13 14 14 9 Leg 26 | . 27 28 28 28 24 Device 14 | . 6 3 14 14 22 Storage 12 | . 14 14 14 14 9 Processor 3 | . 7 9 . . . Protection 2 | . . . . . 7 Energy Gun 5 | . 9 . . . 8 Ballistic Cannon 16 | . 14 27 28 28 9 Naked Turns . | . . . . . . Heaviest Build 32 | 12 15 17 22 22 32 Greatest Support 30 | 20 20 20 20 20 30 Greatest Overweight (x) 1 | . 1 . 1 1 1 Average Overweight (x) . | . . . . 1 . Largest Inventory Capacity 10 | 8 8 8 10 10 10 Average Capacity 9 | 8 8 8 9 10 10 Most Carried 10 | 7 8 8 10 10 10 Average Carried 8 | 6 7 7 8 10 9 Final Capacity 10 | 8 8 8 10 10 10 Final Carried 10 | 7 8 8 10 10 10 Class Distribution -------------------- 61% | Mutant 23% | Scavenger-Skirmisher 9% | Skirmisher 5% | Scavenger-Mutant Dominant Class ---------------- Mutant | -10/Materials Mutant | -10/Mines Mutant | -10/Exiles Mutant | -9/Mines Scavenger-Skirmisher | -8/Materials Resources | -11 -10 -10 -10 -9 -8 ----------- Run | Yrd Mat Min Exi Min Mat Matter Collected 1016 | 210 268 228 . 39 271 Remotely 173 | . . . . . 173 Salvage Created 884 | 118 406 112 . 26 222 Parts 59 | 7 31 7 . 4 10 Haulers Intercepted 2 | . 2 . . . . Recyclers Shooed . | . . . . . . Parts Field Recycled . | . . . . . . Retrieved Matter . | . . . . . . Parts Self-Destructed . | . . . . . . Prevented . | . . . . . . Kills | -11 -10 -10 -10 -9 -8 ------- Run | Yrd Mat Min Exi Min Mat Combat Hostiles Destroyed 21 | . 8 6 . 3 4 Guns 5 | . 4 . . . 1 Cannons 15 | . 3 6 . 3 3 AOE 1 | . 1 . . . . Classes Destroyed 8 | 2 4 1 . . 1 Tunneler 1 | 1 . . . . . Hauler 2 | . 2 . . . . Recycler 3 | 1 1 . . . 1 Watcher 5 | . 3 . . . 2 Swarmer 8 | . 5 . . 3 . Grunt 9 | . 3 4 . . 2 Sentry 2 | . . . . . 2 Assembled 2 | . . 2 . . . Best Kill Streak 5 | 2 5 3 . 3 2 Combat Bots Only 4 | . 4 3 . 3 2 Max Kills in Single Turn 1 | 1 1 1 . 1 1 Gunslinging . | . . . . . . Exploded 1 | . 1 . . . . Melee . | . . . . . . Uniques/NPCs Destroyed . | . . . . . . Combat | -11 -10 -10 -10 -9 -8 -------- Run | Yrd Mat Min Exi Min Mat Hostile Shots Fired 144 | . 36 25 . 17 66 Missed 32 | . 7 6 . 3 16 Damage Taken 1435 | . 311 259 . 111 754 Core 206 | . 39 74 . 19 74 Absorbed by Shields . | . . . . . . Regen/Repaired (Parts) 204 | . 136 . . . 68 Core Remaining (%) 73 | 100 . . . 47 . Volleys Fired 113 | 4 36 25 . 7 41 Largest 2 | 2 2 2 . 2 2 Hottest 138 | 80 80 135 . 70 138 Shots Fired 210 | 8 68 44 1 14 75 Gun 100 | 8 58 . . . 34 Cannon 107 | . 10 41 1 14 41 Launcher . | . . . . . . Special 3 | . . 3 . . . Kinetic 106 | . 16 41 1 14 34 Thermal 75 | 4 27 3 . . 41 Explosive . | . . . . . . Electromagnetic 29 | 4 25 . . . . Robot Hit Streak 8 | 3 4 4 . 2 8 Robot Miss Streak 5 | 1 4 5 . 2 3 Penetration Max . | . . . . . . Secondary Targets 1 | . 1 . . . . Max Gunslinging Chain 1 | . 1 . . . . Shots Hit Robots 104 | 5 31 14 . 6 48 Core Hits 43 | 3 17 7 . 3 13 Critical Kills . | . . . . . . Critical Parts Destroyed . | . . . . . . Critical Strikes 6 | . 1 2 . . 3 Burn 2 | . . . . . 2 Blast 3 | . . 2 . . 1 Corrupt 1 | . 1 . . . . Melee Attacks . | . . . . . . Impact . | . . . . . . Slashing . | . . . . . . Piercing . | . . . . . . Sneak Attacks . | . . . . . . Combat Hostiles . | . . . . . . Follow-up Attacks . | . . . . . . Damage Inflicted 1829 | 56 508 264 . 103 898 Guns 751 | 56 353 . . . 342 Cannons 1014 | . 93 264 . 101 556 Explosions 62 | . 62 . . . . Melee . | . . . . . . Ramming 2 | . . . . 2 . Kinetic 902 | . 131 264 . 101 406 Thermal 712 | 31 189 . . . 492 Explosive . | . . . . . . Electromagnetic 213 | 25 188 . . . . Impact . | . . . . . . Slashing . | . . . . . . Piercing . | . . . . . . Highest Corruption 2 | 1 1 2 2 2 . Average Corruption 1 | 1 1 1 2 2 . Corruption Purged . | . . . . . . Corruption Blocked . | . . . . . . Effects 18 | . 5 3 10 . . Message Errors 4 | . 1 . 3 . . Matter Fused 3 | . 1 1 1 . . Heat Flow Errors 4 | . 2 2 . . . Energy Discharges 3 | . . . 3 . . Parts Rejected 1 | . 1 . . . . Data Loss (minor) 2 | . . . 2 . . Misfires 1 | . . . 1 . . Overload Shots . | . . . . . . Overflow Damage 21 | . . 5 . . 16 Projectiles 21 | . . 5 . . 16 Explosions . | . . . . . . Melee . | . . . . . . Knockbacks 12 | . . 6 . 2 4 Impact . | . . . . . . Kinetic 11 | . . 5 . 2 4 Secondary 1 | . . 1 . . . Self-Inflicted Damage 51 | . 51 . . . . Shots 2 | . 2 . . . . Rammed . | . . . . . . Targets Rammed 2 | . 1 . . 1 . Kicked 2 | . 1 . . 1 . Crushed . | . . . . . . Highest Temperature 723 | 72 188 411 . 63 723 Average Temperature 107 | 38 46 149 . 32 148 Received Heat Transfer 621 | . 54 180 . . 387 Effects 14 | . . 4 . . 10 Shutdowns 4 | . . 1 . . 3 Energy Bleed 1 | . . . . . 1 Interference 2 | . . 1 . . 1 Matter Decay 2 | . . 2 . . . Short Circuit 2 | . . . . . 2 Damage (major) 3 | . . . . . 3 Siege Activations . | . . . . . . Robots Corrupted . | . . . . . . Combat Hostiles . | . . . . . . Parts Fried . | . . . . . . Impact Corruptions . | . . . . . . Robots Melted . | . . . . . . Combat Hostiles . | . . . . . . Parts Melted 2 | . 1 . . . 1 Heat Transferred 1535 | 75 350 . . . 1110 Parts Sabotaged . | . . . . . . Parts Stolen . | . . . . . . Parts Stripped . | . . . . . . Power Chain Reactions 2 | . 2 . . . . Alert | -11 -10 -10 -10 -9 -8 ------- Run | Yrd Mat Min Exi Min Mat Peak Influence 188 | 10 188 85 . 70 137 Initial 27 | . 6 . . . 27 Average 56 | 7 70 36 . 12 57 Maximum Alert Level . | . . . . . . Low Security (%) 100 | 100 100 100 . 100 100 Level 1 . | . . . . . . Level 2 . | . . . . . . Level 3 . | . . . . . . Level 4 . | . . . . . . Level 5 . | . . . . . . High Security . | . . . . . . Max Security . | . . . . . . Squads Dispatched 3 | . 1 . . . 2 Investigation 1 | . . . . . 1 Extermination . | . . . . . . Reinforcement 2 | . 1 . . . 1 Assault . | . . . . . . Garrison . | . . . . . . Intercept . | . . . . . . Searches Triggered . | . . . . . . Construction Impeded . | . . . . . . Haulers Reinforced . | . . . . . . Active Scanning Responses . | . . . . . . Cargo Convoy Interrupts . | . . . . . . Stealth | -11 -10 -10 -10 -9 -8 --------- Run | Yrd Mat Min Exi Min Mat Distress Signals 2 | . 1 . . . 1 Communications Jammed . | . . . . . . Distress Signals . | . . . . . . Times Spotted 45 | . 18 7 . 3 17 Peak Tracking Total 5 | . 5 3 . 3 3 Tactical Retreats 4 | . . 2 . . 2 Traps | -11 -10 -10 -10 -9 -8 ------- Run | Yrd Mat Min Exi Min Mat Traps Triggered 2 | . 2 . . . . Indirectly . | . . . . . . Trap Hack Attempts . | . . . . . . Triggered . | . . . . . . Disarmed . | . . . . . . Reprogrammed . | . . . . . . Reused . | . . . . . . Traps Extracted . | . . . . . . Installed . | . . . . . . Triggered . | . . . . . . Machines | -11 -10 -10 -10 -9 -8 ---------- Run | Yrd Mat Min Exi Min Mat Machines Disabled 4 | . 2 . 1 . 1 Max in Single Turn 1 | . 1 . 1 . 1 Machines Repaired . | . . . . . . Machines Dismantled . | . . . . . . Machines Sabotaged . | . . . . . . Overloaded Fab Kills . | . . . . . . Hacking | -11 -10 -10 -10 -9 -8 --------- Run | Yrd Mat Min Exi Min Mat Machines Accessed 8 | . 5 . 1 . 2 Terminals 5 | . 4 . . . 1 Fabricators . | . . . . . . Repair Stations 2 | . 1 . . . 1 Recycling Units . | . . . . . . Scanalyzers . | . . . . . . Garrison Access . | . . . . . . Total Hacks 30 | . 23 . 1 . 6 Successful 21 | . 18 . 1 . 2 Failed 9 | . 5 . . . 4 Catastrophic 2 | . . . . . 2 Database Lockouts . | . . . . . . Manual 17 | . 14 . 1 . 2 Terminals 16 | . 14 . . . 2 Fabricators . | . . . . . . Repair Stations 13 | . 9 . . . 4 Recycling Units . | . . . . . . Scanalyzers . | . . . . . . Garrison Access . | . . . . . . Terminal Hacks 3 | . 2 . 1 . . Prototype ID Bank 1 | . 1 . . . . Terminal Index 1 | . 1 . . . . Derelict Proto ID Bank 1 | . . . 1 . . Fabricator Hacks . | . . . . . . Repair Station Hacks 10 | . 8 . . . 2 Scan Component 5 | . 4 . . . 1 Repair 5 | . 4 . . . 1 Recycling Unit Hacks . | . . . . . . Scanalyzer . | . . . . . . Garrison Access Hacks . | . . . . . . Unauthorized Hacks 8 | . 8 . . . . Terminals 8 | . 8 . . . . Track 3 | . 3 . . . . Botnet 4 | . 4 . . . . Operators 1 | . 1 . . . . Fabricators . | . . . . . . Repair Stations . | . . . . . . Recycling Units . | . . . . . . Scanalyzers . | . . . . . . Garrison Access . | . . . . . . Data Cores Recovered . | . . . . . . Used . | . . . . . . Hacking Detections 5 | . 3 . . . 2 Full Trace Events 1 | . . . . . 1 Feedback Events . | . . . . . . Feedback Blocked . | . . . . . . Robot Schematics Acquired . | . . . . . . Robots Built . | . . . . . . Authchips . | . . . . . . Time . | . . . . . . Total Robot Build Rating . | . . . . . . Part Schematics Acquired . | . . . . . . Parts Built . | . . . . . . Authchips . | . . . . . . Time . | . . . . . . Total Part Build Rating . | . . . . . . Parts Repaired 5 | . 4 . . . 1 Time 123 | . 104 . . . 19 Parts Recycled . | . . . . . . Recycled Matter . | . . . . . . Retrieved Matter . | . . . . . . Retrieved Components . | . . . . . . Parts Scanalyzed . | . . . . . . Part Schematics Acquired . | . . . . . . Parts Damaged . | . . . . . . Bothacking | -11 -10 -10 -10 -9 -8 ------------ Run | Yrd Mat Min Exi Min Mat Used RIF Installer . | . . . . . . Robots Hacked . | . . . . . . Non-combat . | . . . . . . Combat . | . . . . . . Robot Hacks Applied . | . . . . . . Relay Couplers Released . | . . . . . . Fabnet Peak Effective % . | . . . . . . Robots Rewired . | . . . . . . Allies Hacked . | . . . . . . Hacks Repelled . | . . . . . . Allies | -11 -10 -10 -10 -9 -8 -------- Run | Yrd Mat Min Exi Min Mat Total Allies 1 | . . 1 . . . Largest Group 1 | . . 1 1 . . Highest-Rated Group 31 | . . 31 31 . . Highest-Rated Ally 31 | . . 31 31 . . Total Orders . | . . . . . . Ally Attacks . | . . . . . . Total Damage . | . . . . . . Kills . | . . . . . . Allies Corrupted . | . . . . . . Allies Melted . | . . . . . . Intel | -11 -10 -10 -10 -9 -8 ------- Run | Yrd Mat Min Exi Min Mat Robot Analysis Total . | . . . . . . Derelict Logs Recovered 1 | . . 1 . . . Drone Launches . | . . . . . . Drone Recoveries . | . . . . . . Exploration | -11 -10 -10 -10 -9 -8 ------------- Run | Yrd Mat Min Exi Min Mat Turns Passed 3312 | 32 890 341 639 133 1277 Spaces Moved 1673 | 15 522 149 410 46 531 Core . | . . . . . . Treads . | . . . . . . Legs 1673 | 15 522 149 410 46 531 Wheels . | . . . . . . Hover . | . . . . . . Flight . | . . . . . . Fastest Speed 120 | 120 120 120 120 190 120 Average Speed 135 | 120 120 120 154 190 135 Slowest Speed 190 | 120 190 120 190 190 190 Overloaded Moves . | . . . . . . Propulsion Burnouts . | . . . . . . Robots Hopped . | . . . . . . Cave-ins Triggered . | . . . . . . Exploration Rate (%) 37 | 3 93 32 67 13 16 Regions Visited 5 Branch Regions 3 Pre-discovered Areas . | . . . . . . Known Exits Taken 1 | . 1 . . . . Unknown Exits Taken 4 | 1 . 1 1 1 . Scrap Searched . | . . . . . . Spaces Dug . | . . . . . . Terrain Destroyed 7 | . 6 . . . 1 Melee . | . . . . . . Projectile 1 | . . . . . 1 AOE 6 | . 6 . . . . Terrain Rammed . | . . . . . . Walls Destroyed . | . . . . . . Machines Disabled . | . . . . . . Actions | -11 -10 -10 -10 -9 -8 --------- Run | Yrd Mat Min Exi Min Mat Total 2502 | 20 715 261 417 77 1012 Wait 641 | . 118 78 . 24 421 Move 1668 | 14 521 148 409 45 531 Hop . | . . . . . . Pick Up 23 | 1 12 3 3 . 4 Fast Attach 17 | 1 11 1 . . 4 Attach 5 | . 1 2 . . 2 Detach . | . . . . . . Swap 11 | . 3 2 1 . 5 Drop 22 | . 12 2 4 . 4 Fire 113 | 4 36 25 . 7 41 Melee . | . . . . . . Ram . | . . . . . . Kick 2 | . 1 . . 1 . Crush . | . . . . . . Escape Stasis . | . . . . . . Rewire . | . . . . . . Trap . | . . . . . . Miscellaneous . | . . . . . . Route ------- -11/Scrapyard -10/Materials (discovered 5 exits: *Mat x3 / *Min x2) -10/Mines -10/Exiles -9/Mines -8/Materials History --------- Turn | Location | Event 1 | -11/Scrapyard | Discovered new exit (range 2) 33 | -11/Scrapyard | Entered Materials 309 | -10/Materials | Build established: Mutant 336 | -10/Materials | Discovered new exit (range 8) 414 | -10/Materials | Discovered new exit (range 15) 427 | -10/Materials | Discovered new exit (range 7) 458 | -10/Materials | Identified exit to Mines 597 | -10/Materials | Discovered new exit (range 8) 612 | -10/Materials | Identified exit to Materials 750 | -10/Materials | Repaired Seismic Detector 777 | -10/Materials | Repaired Aluminum Leg 805 | -10/Materials | Repaired Aluminum Leg 832 | -10/Materials | Repaired Lgt. Cannon 861 | -10/Materials | Discovered exit to Mines (range 14) 923 | -10/Materials | Entered Mines 955 | -10/Mines | Learned Materials stockpile data 964 | -10/Mines | Excavation squad dispatched 964 | -10/Mines | A large section of the Mines collapsed 1214 | -10/Mines | Excavation squad dispatched 1235 | -10/Mines | Received a Mining Laser from a helpful Derelict 1255 | -10/Mines | Deemed a non-threat by the Exiles lab entrance 1255 | -10/Mines | Discovered new exit (range 5) 1264 | -10/Mines | Entered Exiles 1264 | -10/Exiles | Accompanied by 1 ally 1292 | -10/Exiles | Met 8R-AWN 1315 | -10/Exiles | Met EX-HEX 1346 | -10/Exiles | Met EX-BIN 1363 | -10/Exiles | Aligned with FarCom system 1364 | -10/Exiles | Given EX-Vault access code 1393 | -10/Exiles | Opened EX-Vault 1404 | -10/Exiles | Found Lightpack 2.0 1431 | -10/Exiles | Warned to stay clear of 0b10 Research branches 1471 | -10/Exiles | Met EX-DEC 1880 | -10/Exiles | Discovered new exit (range 14) 1903 | -10/Exiles | Left Exiles lab with Lightpack 2.0 1903 | -10/Exiles | Entered Mines 2013 | -9/Mines | Core integrity fell below 50% 2023 | -9/Mines | Discovered new exit (range 3) 2036 | -9/Mines | Entered Materials 2036 | -8/Materials | Evolved 4 slots: Propulsion x1, Utility x3 2524 | -8/Materials | Build established: Scavenger-Skirmisher 3193 | -8/Materials | Repaired Hrd. Medium Armor Plating 3290 | -8/Materials | Build established: Skirmisher 3313 | -8/Materials | Self-destructed Last Messages --------------- 03287_ Material Processor disabled. 03290_ G-47 Trooper knocked back. 03300_ Wheel destroyed. 03303_ Power failure, Lgt. Deuterium Engine shutdown. 03303_ Lgt. Nuclear Core melted. 03303_ G-47 Trooper destroyed. 03304_ Acquired 42 matter. 03306_ Overheating: Imp. Sensor Array damaged (-14). 03306_ Overheating: Aluminum Leg damaged (-14). 03306_ Overheating: Field Laser damaged (-11). 03306_ Aluminum Leg destroyed. 03306_ Destroyed Lgt. Nuclear Core. 03308_ Field Laser broken. 03308_ Overheating: Short circuit. 03309_ Critical hit (Burn: +37). 03310_ Imp. Sensor Array broken. 03310_ Overheating: Short circuit. 03311_ Power failure, Lgt. Deuterium Engine shutdown. 03312_ Overheating: System interference. 03312_ Hvy. Particle Cannon temporarily disabled. Map ----- +----------------------------------------------------+ | ?????????????????????????# # # | | ?????????????????????????# + # | | ?????????????????????????# # # | | ?????????????????????????# # # | | ?????????????????????????# # # | | ?????????????????????????# # # | | ?????????????????????????# ##+### | | ?????????????????????????# ## #?? | | ???##########????????????# ##+### | | ???# #????????????# # # | | ???# #????????????# # # | | ???# """ #????????????# # # | | ???# """ #????????????# # # | | ???# """ #????????????# # # | | ???# """ #????????????# # # | | ???# """ #????????????# + # | | ???# #????????????# # # | | ???# #????????????# # # | | ???#####+####???????????## ###### | | ?????# ############## #???? | | ?????# " #???? | | ?????# "T #???? | | ?????# #???? | | ?????# ##########+### #???? | | ?????## ######### ###+######? | | ??????# # # "" #@ #? | | ??????# # + """# gg #? | | ####### + "Y" # R"# """ #? | | ! # # """ # """# [ """"#? | | + #########= # " """#? | | """ # ######### # """""#? | | """ # ## / # """ #? | | """ # ## ###### "" # #? | | # ## #????# """ # #? | | +##/### ## #????# """ #;########? | | ? ?? ## #????# ##????????? | | ??? ## ######## ###?????????? | | ??? ## # =###???????????? | | ##???### ### + ! #?????????????? | | ???????# #?# # ""#?????????????? | | ???????# #?# #!*! Y"#?????????????? | | ???????# #?# #! ! ""#?????????????? | | ???????# #?# #*! #?????????????? | | ???????# #?# ########?????????????? | | ???????# #?# #?????????????=??????? | | ??????## ### #????????????????????? | | ??????# #????????????????????? | | ??????# ######????????????????????? | | ??????# ??????????????????????????? | | ?????? ??????????????????????????? | +----------------------------------------------------+ Best States ------------- Heat Dissipation 31 Energy Generation 14 Energy Capacity 250 Matter Stores 300 Matter Capacity 300 Sight Range 16 Robot Scan Range 15 Terrain Scan Density 10 Armor Coverage 225 Evasion (%) 55 Item Schematics ----------------- None Robot Schematics ------------------ None Fabricated ------------ Nothing Alien Tech Used ----------------- None Achievements -------------- None Challenges ------------ None Game ------ Seed DataSubdwellerBox Manual? 0 Play Time 00:32:38 Cumulative 164.1 hours Start 2024.03.22 @ 04:24:29 End 2024.03.22 @ 05:18:26 Sessions 1 Manual Loads 0 Difficulty Rogue Special Mode None Game No. 135 Rogue 129 Adventurer 0 Explorer 6 Win Type - Total 3 Types 3/0/0/0/0/0/0/0/0 Lore% 43 Gallery% 56 Achievement% 47 Wizard Run 0 Options --------- Layout 0 ASCII 0 Keyboard 0 Movement Numpad Keybinds 0 Fullscreen 1 Font 24/Smallcaps Map View 113x50 Zoom Use 0% Tactical HUD 1 Map Filters NONE Filters NONE Steam 1 RUN: eb018c4a-6979-458f-b232-9963be38ff0a